bitfinex-derivatives/quotes_SOLF0:USTF0_20241024
["timestamp","ask_amount","ask_price","bid_price","bid_amount"]
[1729761639312,4.68,172.23,172.2,1.2899]
[1729761640414,2.89880999,172.22,172.2,1.2899]
[1729761642409,2.86088153,172.26,172.2,1.2899]
[1729761642602,4.68,172.25,172.2,1.2899]
[1729761642909,4.68,172.25,172.21,2.9058]
[1729761643109,4.68,172.25,172.2,1.2899]
[1729761643716,4.68,172.25,172.21,2.9057]
[1729761644217,5.87049477,172.26,172.21,2.9057]
[1729761644412,4.68,172.25,172.23,2.9054]
[1729761645115,189.84508704,172.37,172.21,11.14640284]
[1729761645311,11.14640284,172.33,172.21,11.14640284]
[1729761645517,11.14640284,172.33,172.21,12.24640284]
[1729761645907,2.9046,172.29,172.21,12.24640284]
[1729761646116,11.14640284,172.33,172.21,12.24640284]
[1729761646315,4.68,172.32,172.22,1.2229]
[1729761646515,2.9044,172.3,172.24,2.9052]
[1729761646710,2.9044,172.3,172.22,1.2229]
[1729761647224,2.9044,172.3,172.25,2.905]
[1729761649213,2.9048,172.27,172.23,4.0055]
[1729761649417,2.9048,172.27,172.23,2.9055]
[1729761649824,4.68,172.28,172.22,1.2229]
[1729761650025,7.5847,172.28,172.24,2.9053]
[1729761650229,4.68,172.28,172.24,2.9053]
[1729761650830,4.68,172.28,172.23,1.1]
[1729761651015,4.68,172.28,172.25,2.9051]
[1729761651326,4.68,172.29,172.25,2.9051]
[1729761651523,2.89047683,172.31,172.25,11.14640284]
[1729761651729,4.68,172.33,172.26,1.235]
[1729761651920,4.68,172.33,172.27,1.1858]
[1729761652421,15.82640284,172.33,172.27,1.1858]
[1729761652628,15.82640284,172.33,172.26,1.235]
[1729761653415,2.9043,172.31,172.26,4.1399]
[1729761653621,5.83291097,172.31,172.26,4.1399]
[1729761653817,2.9043,172.31,172.26,4.1399]
[1729761654424,5.77140094,172.31,172.26,4.1399]
[1729761655225,2.86710094,172.31,172.23,1.1858]
[1729761655424,15.82640284,172.33,172.23,1.1858]
[1729761656225,2.9044,172.3,172.26,2.905]
[1729761658224,2.96935215,172.31,172.23,1.1858]
[1729761658225,2.905,172.27,172.23,1.1858]
[1729761659124,2.88162781,172.26,172.23,4.0913]
[1729761661234,2.905,172.27,172.23,4.0913]
[1729761661640,5.87329238,172.27,172.23,4.0913]
[1729761661940,2.905,172.27,172.23,4.0913]
[1729761662339,2.97032605,172.26,172.23,4.0913]
[1729761663435,2.905,172.27,172.23,4.0913]
[1729761663635,5.77463785,172.27,172.23,4.0913]
[1729761664930,2.86963785,172.27,172.26,2.905]
[1729761665139,4.68,172.28,172.23,1.1858]
[1729761665536,7.5848,172.28,172.24,2.9053]
[1729761665736,10.55873021,172.28,172.24,2.9053]
[1729761666041,2.905,172.26,172.23,1.1858]
[1729761666940,11.14640284,172.25,172.21,1.2649]
[1729761667239,7.65393021,172.28,172.05,6.00749379]
[1729761667240,11.14640284,172.23,172.16,2.4667]
[1729761667434,4.68,172.22,172.16,2.4667]
[1729761667635,4.68,172.22,172.16,3.56663]
[1729761668239,4.68,172.22,172.17,2.9064]
[1729761668435,4.68,172.22,172.16,3.56663]
[1729761669240,11.14640284,172.25,172.16,14.71303284]
[1729761669543,4.68,172.25,172.18,11.14640284]
[1729761670036,11.14640284,172.29,172.18,12.24633284]
[1729761670245,4.68,172.28,172.2,11.14640284]
[1729761670430,7.5271836,172.29,172.2,11.14640284]
[1729761670631,7.5271836,172.29,172.19,1.2046]
[1729761670632,2.9048,172.27,172.23,2.9054]
[1729761670843,2.83933852,172.27,172.19,1.2046]
[1729761671041,2.9053,172.25,172.21,2.9058]
[1729761671233,15.82640284,172.24,172.16,8.30851]
[1729761671432,11.14640284,172.22,172.16,2.4667]
[1729761671633,14.11010043,172.22,172.16,2.4667]
[1729761671838,2.9059,172.21,172.17,2.9064]
[1729761672143,14.11010043,172.22,172.16,2.4667]
[1729761673360,2.9061,172.2,172.16,5.3734]
[1729761673644,15.82640284,172.2,172.1,1.2846]
[1729761673838,2.9065,172.18,172.13,2.9071]
[1729761674538,2.91684546,172.19,172.12,4.06911]
[1729761674745,15.82640284,172.2,172.12,2.9073]
[1729761675039,2.9066,172.17,172.12,4.06911]
[1729761675243,11.14640284,172.17,172.12,2.9073]
[1729761675438,11.14640284,172.17,172.11,2.9074]
[1729761675652,2.9067,172.16,172.11,2.9074]
[1729761676042,11.14640284,172.17,172.11,2.9074]
[1729761676443,11.14640284,172.17,172.12,2.9073]
[1729761676746,7.5864,172.18,172.11,1.09993]
[1729761676945,4.68,172.18,172.1,3.66403]
[1729761677243,4.68,172.18,172.1,2.5641]
[1729761677444,4.68,172.18,172.1,3.72635]
[1729761677645,4.68,172.18,172.1,2.5641]
[1729761677943,2.9069,172.15,172.1,2.5641]
[1729761678944,2.9069,172.15,172.1,5.4717]
[1729761679944,11.14640284,172.17,172.1,5.4717]
[1729761680144,2.9071,172.14,172.1,4.1871]
[1729761680942,2.9069,172.15,172.1,4.1871]
[1729761682053,2.9069,172.15,172.11,2.9075]
[1729761683249,11.14640284,172.17,172.1,1.2795]
[1729761683250,2.9071,172.14,172.1,1.2795]
[1729761683448,11.14640284,172.17,172.06,1.167]
[1729761683654,11.14640284,172.17,172.06,2.267]
[1729761683857,2.9073,172.13,172.08,2.908]
[1729761685153,11.14640284,172.12,172.06,2.9084]
[1729761685461,11.14640284,172.12,172.03,1.16265]
[1729761685758,2.9078,172.1,172.05,2.9084]
[1729761686052,7.5878,172.1,172.05,2.9084]
[1729761686256,11.14640284,172.09,172.01,4.69983]
[1729761686460,11.14640284,172.09,172.01,3.5999]
[1729761686756,2.9083,172.07,172.02,2.909]
[1729761687257,11.14640284,172.09,172.02,2.909]
[1729761687464,2.9085,172.06,172.01,6.509]
[1729761687654,7.5685,172.06,172.01,6.509]
[1729761687853,4.66,172.06,172.01,3.5999]
[1729761688058,2.84837707,172.1,172.01,3.5999]
[1729761688255,4.66,172.09,172.01,15.04626284]
[1729761688454,2.9078,172.1,172.05,2.9084]
[1729761688656,4.66,172.11,172.04,11.14640284]
[1729761688972,4.66,172.12,172.04,11.44636284]
[1729761689155,4.66,172.12,172.08,2.908]
[1729761689359,2.9073,172.13,172.08,2.908]
[1729761689556,4.66,172.12,172.09,2.9078]
[1729761689757,4.66,172.12,172.05,0.29996]
[1729761690060,4.66,172.12,172.05,1.16262]
[1729761690357,4.66,172.12,172.09,2.9078]
[1729761690558,4.66,172.12,172.05,1.16262]
[1729761691256,4.66,172.12,172.09,2.9079]
[1729761691565,2.9073,172.13,172.09,2.9079]
[1729761691754,7.5674,172.12,172.07,2.9081]
[1729761692758,7.5674,172.12,172.01,19.40630284]
[1729761692759,2.9076,172.11,172.01,19.40630284]
[1729761693062,2.9076,172.11,172.06,2.9083]
[1729761693264,2.9077,172.1,172.06,2.9083]
[1729761693658,15.80640284,172.12,172.01,3.5999]
[1729761693859,2.9082,172.08,172.01,3.5999]
[1729761694063,7.5882,172.08,172.01,3.5999]
[1729761694263,7.5882,172.08,172.04,2.9087]
[1729761694458,4.68,172.08,172.01,3.5999]
[1729761694867,7.5879,172.09,172.01,3.5999]
[1729761695553,7.5879,172.09,172.04,2.9086]
[1729761695764,4.68,172.09,172.01,3.5999]
[1729761695964,15.82640284,172.09,172.01,3.5999]
[1729761696166,15.82640284,172.09,171.97,4.68]
[1729761696359,2.9085,172.06,171.97,4.68]
[1729761696561,2.9085,172.06,172.01,2.9091]
[1729761696969,2.9085,172.06,171.98,1.06885012]
[1729761697158,18.78762651,172.05,171.98,3.97845012]
[1729761697359,11.14640284,172.02,171.98,1.06885012]
[1729761697560,7.5893,172.01,171.98,1.06885012]
[1729761698069,2.9096,171.99,171.98,1.06885012]
[1729761698971,2.9096,171.99,171.88,11.14640284]
[1729761698972,2.9101,171.96,171.88,1.16329]
[1729761699161,4.68,171.95,171.86,4.89579]
[1729761699474,4.68,171.95,171.93,2.9104]
[1729761699861,4.68,171.98,171.9,1.09952]
[1729761700066,4.68,171.98,171.89,11.14640284]
[1729761700368,4.68,171.99,171.91,11.14640284]
[1729761700562,4.68,171.99,171.96,2.9101]
[1729761701575,4.68,171.99,171.95,2.9102]
[1729761702465,4.68,171.99,171.96,2.9101]
[1729761702670,4.68,172.01,171.93,3.57682]
[1729761704368,7.5893,172.01,171.96,2.9099]
[1729761704970,2.89222819,172.03,172.0,2.9094]
[1729761705180,4.68,172.04,172.0,2.9094]
[1729761705368,17.88618316,172.1,171.95,17.88618316]
[1729761705568,4.68,172.09,171.95,17.88618316]
[1729761705774,4.68,172.09,171.96,4.68]
[1729761705973,4.68,172.09,171.96,5.77952]
[1729761706377,2.9081,172.08,171.96,5.77952]
[1729761706575,4.68,172.09,171.96,5.77952]
[1729761707079,2.9083,172.07,172.02,2.909]
[1729761707472,2.9083,172.07,172.03,2.9089]
[1729761709573,7.5883,172.07,172.03,2.9089]
[1729761711479,7.5883,172.07,172.0,2.567]
[1729761711480,4.68,172.07,172.04,2.9086]
[1729761712284,4.68,172.07,172.03,2.9088]
[1729761713279,7.5882,172.07,172.03,2.9088]
[1729761714782,20.76675974,172.1,172.08,2.9079]
[1729761714783,2.88057658,172.1,172.08,2.9079]
[1729761714980,17.88618316,172.16,172.01,1.2196]
[1729761715186,4.68,172.13,172.03,17.88618316]
[1729761715386,4.68,172.13,172.04,4.68]
[1729761715682,4.68,172.13,172.04,5.77952]
[1729761717485,7.5872,172.13,172.09,2.9077]
[1729761717883,2.907,172.15,172.11,2.9074]
[1729761718089,7.567,172.15,172.11,2.9074]
[1729761718882,1.8423,172.24,172.08,5.75952]
[1729761718883,17.88618316,172.21,172.08,5.75952]
[1729761719086,17.88618316,172.21,172.14,2.907]
[1729761719087,4.66,172.19,172.14,2.907]
[1729761719290,7.50563336,172.19,172.14,2.907]
[1729761719485,2.84563336,172.19,172.14,2.907]
[1729761719684,4.66,172.19,172.14,2.907]
[1729761719985,19.72848316,172.24,172.11,1.09952]
[1729761720184,19.72848316,172.24,172.08,5.9116]
[1729761720185,4.66,172.23,172.12,22.54618316]
[1729761720384,4.66,172.23,172.13,4.66]
[1729761720792,4.66,172.23,172.14,2.4184]
[1729761721380,4.66,172.23,172.14,5.3253]
[1729761721990,4.66,172.23,172.14,2.4184]
[1729761722286,4.66,172.23,172.15,2.9068]
[1729761722789,4.66,172.23,172.11,1.0998]
[1729761722985,6.4988,172.23,172.11,1.0998]
[1729761723185,2.9064,172.18,172.14,2.9069]
[1729761724996,15.82605094,172.19,172.1,2.3622]
[1729761725284,15.82605094,172.19,172.1,1.2624]
[1729761725684,2.907,172.15,172.1,1.2624]
[1729761726297,2.907,172.15,172.1,4.17]
[1729761726486,2.9072,172.13,172.1,1.2624]
[1729761726883,11.16605094,172.12,172.05,1.09984]
[1729761727097,2.9078,172.1,172.04,1.16268]
[1729761727286,2.9078,172.1,172.02,5.9198]
[1729761727487,2.9078,172.1,172.02,7.08262]
[1729761727692,2.9078,172.1,172.02,2.42262]
[1729761727887,4.66,172.11,172.02,2.35964]
[1729761728087,7.5677,172.11,172.06,2.9083]
[1729761728287,11.16605094,172.09,172.02,1.2598]
[1729761728487,2.9087,172.05,172.0,5.366]
[1729761728684,15.82605094,172.07,172.0,2.4566]
[1729761728887,15.82605094,172.07,172.0,1.251]
[1729761729084,11.16605094,172.05,172.0,1.251]
[1729761729287,2.9089,172.03,172.0,1.251]
[1729761729685,11.16605094,172.05,171.97,1.217]
[1729761729888,2.9092,172.02,171.97,4.1268]
[1729761731492,11.16605094,172.02,171.95,1.16275]
[1729761731794,11.16605094,171.99,171.9,2.38985]
[1729761731987,4.66,171.99,171.9,12.39315094]
[1729761732191,14.07525094,172.02,171.9,12.39315094]
[1729761732192,4.66,172.0,171.9,12.39315094]
[1729761732693,4.66,172.0,171.9,13.49283094]
[1729761733497,7.5694,172.0,171.94,2.9103]
[1729761734097,4.66,172.0,171.92,1.09968]
[1729761734293,11.16605094,171.99,171.9,2.32678]
[1729761734493,11.16605094,171.99,171.9,1.2271]
[1729761734694,2.9102,171.96,171.91,2.9109]
[1729761734893,4.66,171.96,171.9,1.2271]
[1729761735295,4.66,171.96,171.91,2.9109]
[1729761736295,7.5702,171.96,171.91,2.9109]
[1729761736495,7.5702,171.96,171.9,4.1381]
[1729761736695,4.66,171.96,171.9,1.2271]
[1729761737597,4.66,171.96,171.9,2.32662]
[1729761738209,4.66,171.96,171.92,2.9106]
[1729761738901,11.16605094,172.0,171.9,2.32662]
[1729761739095,4.66,171.99,171.9,1.09952]
[1729761739302,11.16605094,171.98,171.88,1.2061]
[1729761739701,2.9102,171.96,171.91,2.9109]
[1729761739901,4.66,171.95,171.91,2.9109]
[1729761740910,4.66,172.0,171.92,11.16605094]
[1729761741102,11.16605094,172.05,171.93,1.1965]
[1729761741403,11.16605094,172.05,171.94,11.16605094]
[1729761741404,2.909,172.03,171.94,11.16605094]
[1729761741799,4.66,172.02,171.94,11.16605094]
[1729761742001,4.66,172.02,171.94,1.09945]
[1729761742200,11.16605094,172.01,171.9,1.1965]
[1729761742508,11.16605094,172.01,171.9,2.29595]
[1729761742998,2.9099,171.98,171.93,2.9104]
[1729761743200,4.66,172.01,171.91,11.16605094]
[1729761743401,4.66,172.01,171.91,12.26576094]
[1729761743703,4.66,172.01,171.91,12.32928094]
[1729761744005,4.66,172.01,171.91,11.16605094]
[1729761744210,15.82605094,172.01,171.9,1.1965]
[1729761744600,2.9096,171.99,171.94,2.9103]
[1729761744801,2.9096,171.99,171.9,1.1965]
[1729761744802,4.66,171.99,171.9,1.1965]
[1729761745197,4.66,171.99,171.92,2.9106]
[1729761745397,4.66,171.99,171.9,1.1965]
[1729761746005,4.66,171.99,171.93,2.9106]
[1729761746006,2.91,171.97,171.93,2.9106]
[1729761746395,4.66,171.99,171.95,2.9102]
[1729761746903,4.66,171.99,171.77,8.74]
[1729761746904,11.16605094,171.96,171.77,8.74]
[1729761747107,4.66,171.95,171.85,11.16605094]
[1729761748901,4.66,171.95,171.85,12.32985094]
[1729761749300,11.16605094,171.98,171.87,11.16605094]
[1729761749613,11.16605094,171.98,171.88,1.2711]
[1729761749614,4.68,171.97,171.88,1.2711]
[1729761749810,7.59693816,171.97,171.88,1.2711]
[1729761750104,11.16605094,171.95,171.88,1.1638]
[1729761750308,11.16605094,171.95,171.83,4.68]
[1729761750810,11.16605094,171.95,171.83,5.8438]
[1729761751109,2.9108,171.92,171.86,2.9117]
[1729761751311,7.5908,171.92,171.83,1.1638]
[1729761751902,7.5908,171.92,171.85,2.9118]
[1729761752105,4.68,171.92,171.83,1.1638]
[1729761752303,2.911,171.91,171.83,1.1638]
[1729761752608,2.911,171.91,171.86,2.9116]
[1729761752809,2.911,171.91,171.86,4.0754]
[1729761753216,7.5908,171.92,171.87,2.9115]
[1729761753505,4.68,171.92,171.84,1.1638]
[1729761753898,4.68,171.92,171.83,1.1638]
[1729761754404,4.68,171.92,171.84,2.9121]
[1729761754405,2.9113,171.89,171.84,2.9121]
[1729761754608,4.68,171.88,171.77,13.70425094]
[1729761754908,7.5916,171.88,171.78,1.07000031]
[1729761755208,4.68,171.89,171.79,15.84605094]
[1729761755399,4.68,171.89,171.82,2.9124]
[1729761755605,4.68,171.89,171.79,15.84605094]
[1729761756111,4.68,171.89,171.84,2.912]
[1729761756908,4.68,171.89,171.87,2.9116]
[1729761757214,4.68,171.9,171.82,11.16605094]
[1729761757816,7.5912,171.9,171.85,2.9118]
[1729761758618,4.68,171.9,171.88,2.9114]
[1729761758817,4.68,171.9,171.82,11.16605094]
[1729761759217,11.16605094,171.93,171.82,12.26592094]
[1729761759410,11.16605094,171.93,171.83,5.8825]
[1729761759615,4.68,171.93,171.85,11.16605094]
[1729761759918,4.68,171.93,171.9,2.9111]
[1729761760108,4.68,171.93,171.85,12.26592094]
[1729761760309,7.5906,171.93,171.87,2.9115]
[1729761760516,4.68,171.93,171.85,13.55152094]
[1729761761013,2.9108,171.92,171.87,2.9116]
[1729761762812,4.68,171.93,171.87,2.9116]
[1729761763014,2.9109,171.91,171.87,2.9116]
[1729761763219,11.16605094,171.9,171.82,2.9123]
[1729761763425,4.68,171.89,171.78,11.16605094]
[1729761763919,4.68,171.89,171.78,12.32999094]
[1729761765212,7.5913,171.89,171.84,2.9119]
[1729761765417,4.68,171.89,171.78,12.32999094]
[1729761765617,4.68,171.89,171.8,4.68]
[1729761766213,4.68,171.89,171.8,1.16394]
[1729761766418,2.9115,171.88,171.84,2.9121]
[1729761768515,4.68,171.89,171.84,2.9121]
[1729761768714,7.5913,171.89,171.84,2.9121]
[1729761768920,4.68,171.9,171.84,1.16394]
[1729761769115,4.68,171.9,171.84,0.28314]
[1729761769321,4.68,171.9,171.7,8.02043421]
[1729761769322,2.9119,171.86,171.77,0.28314]
[1729761769519,4.68,171.85,171.77,0.28314]
[1729761769719,4.68,171.85,171.71,1.185]
[1729761769720,11.16605094,171.84,171.71,1.185]
[1729761769920,2.9123,171.83,171.72,1.07031253]
[1729761770125,11.16605094,171.84,171.72,1.07031253]
[1729761770522,11.16605094,171.84,171.73,4.68]
[1729761771119,11.16605094,171.84,171.73,0.28314]
[1729761771325,11.16605094,171.81,171.73,0.28314]
[1729761771527,11.16605094,171.83,171.73,0.28314]
[1729761771829,14.07845094,171.83,171.77,2.9132]
[1729761772826,11.16605094,171.83,171.76,2.9134]
[1729761773531,11.16605094,171.83,171.75,0.28314]
[1729761773726,11.16605094,171.83,171.74,0.21891]
[1729761774028,11.16605094,171.83,171.55,84.38212866]
[1729761774029,2.9138,171.74,171.6,2.87470027]
[1729761774226,7.6138,171.74,171.64,2.4187]
[1729761774420,7.6138,171.74,171.68,2.9147]
[1729761774421,2.9138,171.74,171.68,2.9147]
[1729761774730,4.7,171.73,171.64,2.4187]
[1729761774939,4.7,171.73,171.65,1.07092607]
[1729761775227,4.7,171.73,171.64,3.51876]
[1729761775228,4.7,171.73,171.68,2.9148]
[1729761775530,4.7,171.73,171.67,1.10006]
[1729761775531,11.16605094,171.72,171.67,1.10006]
[1729761776029,11.16605094,171.72,171.66,1.10009]
[1729761776328,11.16605094,171.7,171.63,1.16546]
[1729761776535,4.7,171.69,171.63,1.16546]
[1729761776733,2.91635415,171.74,171.59,1.16546]
[1729761776917,11.16605094,171.71,171.61,11.16605094]
[1729761777220,0.9707,171.78,171.61,11.16605094]
[1729761777221,4.96,171.7,171.61,11.16605094]
[1729761777419,11.16605094,171.73,171.61,11.16605094]
[1729761777723,16.12605094,171.73,171.63,11.16605094]
[1729761778324,11.16605094,171.71,171.64,1.07109878]
[1729761778626,11.16605094,171.71,171.61,2.533]
[1729761778833,11.16605094,171.71,171.66,2.9151]
[1729761780123,11.16605094,171.71,171.65,1.09993]
[1729761780325,14.08035094,171.71,171.65,4.01523]
[1729761780528,14.08035094,171.71,171.65,2.9153]
[1729761780924,14.08035094,171.71,171.65,4.01523]
[1729761781325,2.9145,171.7,171.65,2.9153]
[1729761782518,11.16605094,171.68,171.53,4.96]
[1729761782723,16.12605094,171.68,171.55,11.16605094]
[1729761783029,11.16605094,171.7,171.58,11.16605094]
[1729761783226,4.96,171.72,171.6,11.16605094]
[1729761783428,4.96,171.72,171.61,2.30237406]
[1729761783623,4.96,171.72,171.6,1.16536]
[1729761783624,11.16605094,171.67,171.6,1.16536]
[1729761783929,11.16605094,171.67,171.59,1.16536]
[1729761784223,2.88799953,171.73,171.58,13.62861094]
[1729761784224,7.8747,171.69,171.58,13.62861094]
[1729761784431,2.9147,171.69,171.59,2.36156329]
[1729761784628,11.16605094,171.7,171.59,1.2902]
[1729761784837,2.9148,171.68,171.59,1.2902]
[1729761785222,2.9148,171.68,171.6,1.07134193]
[1729761785419,11.16605094,171.7,171.59,2.45556]
[1729761785622,2.9152,171.66,171.59,2.45556]
[1729761785829,11.16605094,171.7,171.6,2.9162]
[1729761785830,11.16605094,171.67,171.6,2.9162]
[1729761786031,11.16605094,171.67,171.59,1.2902]
[1729761786331,11.16605094,171.67,171.58,8.65366]
[1729761786332,2.9155,171.65,171.58,8.65366]
[1729761786528,2.9155,171.65,171.59,2.9162]
[1729761786837,2.9155,171.65,171.59,1.16536]
[1729761787222,4.96,171.67,171.59,1.16536]
[1729761787418,4.96,171.67,171.6,11.16605094]
[1729761787618,11.16605094,171.72,171.6,11.16605094]
[1729761787823,2.9145,171.7,171.64,2.9154]
[1729761788130,2.9145,171.7,171.6,12.33141094]
[1729761788131,4.96,171.71,171.62,4.96]
[1729761788428,4.96,171.74,171.65,11.16605094]
[1729761788633,11.16605094,171.77,171.65,11.16605094]
[1729761788823,4.96,171.75,171.65,11.16605094]
[1729761789228,2.9138,171.74,171.68,2.9147]
[1729761789426,2.9138,171.74,171.65,12.33141094]
[1729761789634,5.8236,171.86,171.65,12.33141094]
[1729761789635,2.93262554,171.79,171.68,11.16605094]
[1729761789822,5.84562554,171.79,171.72,2.914]
[1729761790021,11.16605094,171.8,171.71,4.96]
[1729761790526,2.9133,171.78,171.71,6.12536]
[1729761791128,11.16605094,171.8,171.71,6.12536]
[1729761791329,2.9128,171.8,171.71,6.12536]
[1729761792233,16.12605094,171.83,171.71,6.12536]
[1729761792535,16.12605094,171.83,171.73,11.16605094]
[1729761792536,4.96,171.83,171.73,11.16605094]
[1729761793033,2.9126,171.81,171.76,2.9135]
[1729761793431,4.96,171.83,171.75,11.16605094]
[1729761793628,62.92,171.89,171.77,11.16605094]
[1729761793629,11.16605094,171.88,171.77,11.16605094]
[1729761793827,4.96,171.87,171.77,11.16605094]
[1729761794031,62.92,171.89,171.75,6.12536]
[1729761794032,2.9127,171.81,171.75,1.16536]
[1729761794242,14.12678735,171.8,171.7,3.6791]
[1729761794535,11.16605094,171.8,171.7,3.6791]
[1729761794736,2.9134,171.77,171.7,3.6791]
[1729761794925,2.9134,171.77,171.7,4.7791]
[1729761795130,14.11862945,171.8,171.7,4.7791]
[1729761795331,2.9133,171.77,171.72,2.9141]
[1729761796231,11.16605094,171.8,171.72,1.1]
[1729761796624,2.913,171.79,171.73,2.9138]
[1729761796826,11.16605094,171.8,171.72,1.1]
[1729761798139,2.913,171.79,171.74,2.9137]
[1729761799739,11.16605094,171.8,171.73,1.1]
[1729761799937,14.07895094,171.8,171.75,2.9136]
[1729761800137,11.16605094,171.8,171.75,2.9136]
[1729761800339,11.16605094,171.76,171.59,110.49540729]
[1729761800533,4.96,171.75,171.62,11.16605094]
[1729761800739,11.16605094,171.73,171.62,12.33144094]
[1729761801038,11.16605094,171.73,171.63,1.07104794]
[1729761801238,2.9146,171.7,171.65,2.9153]
[1729761801435,14.03863128,171.73,171.65,2.9153]
[1729761801645,14.03863128,171.73,171.61,2.5065]
[1729761801836,2.9147,171.69,171.64,2.9153]
[1729761802635,11.16605094,171.73,171.62,11.16605094]
[1729761802836,11.16605094,171.73,171.61,7.4665]
[1729761802837,4.96,171.74,171.65,11.16605094]
[1729761803149,7.8739,171.74,171.69,2.9145]
[1729761803333,4.96,171.74,171.65,16.12605094]
[1729761803731,4.96,171.74,171.69,2.9145]
[1729761804540,17.90109053,171.73,171.55,8.02043421]
[1729761804740,17.90109053,171.73,171.6,2.916]
[1729761804741,2.9151,171.67,171.6,2.916]
[1729761804948,7.8751,171.67,171.6,2.916]
[1729761805542,7.8751,171.67,171.61,2.916]
[1729761806143,7.8751,171.67,171.61,4.01583]
[1729761806353,4.96,171.67,171.63,2.9156]
[1729761807246,5.22,171.68,171.62,1.09983]
[1729761807452,5.22,171.68,171.57,21.50172053]
[1729761807657,5.22,171.68,171.58,1.07138732]
[1729761807842,8.1348,171.68,171.61,2.916]
[1729761808445,8.1348,171.68,171.62,2.9158]
[1729761809053,8.1348,171.68,171.62,4.01563]
[1729761809256,2.9158,171.63,171.56,4.01673]
[1729761809447,5.22,171.63,171.56,2.9169]
[1729761809645,5.22,171.63,171.56,4.01654]
[1729761809852,2.916,171.61,171.56,4.01654]
[1729761810040,2.916,171.61,171.56,1.09964]
[1729761810755,2.9163,171.6,171.56,1.09964]
[1729761810957,2.9163,171.6,171.55,1.16567]
[1729761811154,5.22,171.63,171.55,1.16567]
[1729761811349,2.9162,171.61,171.56,2.9168]
[1729761812051,2.9162,171.61,171.56,4.08247]
[1729761812651,2.9159,171.62,171.56,4.08247]
[1729761812853,17.90109053,171.67,171.56,1.16567]
[1729761813056,5.22,171.66,171.56,1.16567]
[1729761813250,8.1355,171.65,171.56,1.16567]
[1729761813753,2.9155,171.64,171.59,2.9163]
[1729761813959,17.90109053,171.7,171.59,1.16567]
[1729761814148,5.22,171.69,171.63,2.9155]
[1729761814346,5.22,171.72,171.6,26.96499053]
[1729761814555,5.22,171.72,171.6,22.91066053]
[1729761814852,8.1342,171.72,171.61,5.22]
[1729761815054,8.1342,171.72,171.61,7.45692895]
[1729761815254,8.1342,171.72,171.61,6.38567]
[1729761815554,8.1342,171.72,171.62,1.0712312]
[1729761815760,17.90109053,171.76,171.61,6.38567]
[1729761815974,2.914,171.73,171.67,2.9149]
[1729761816151,2.914,171.73,171.67,4.08057]
[1729761816859,5.22,171.75,171.69,2.9146]
[1729761817056,5.22,171.76,171.67,1.16567]
[1729761817463,5.22,171.76,171.7,2.9143]
[1729761817464,2.9136,171.76,171.7,2.9143]
[1729761817864,2.9136,171.76,171.7,1.16567]
[1729761818055,2.9133,171.77,171.7,1.16567]
[1729761818862,5.22,171.78,171.7,1.16567]
[1729761819260,17.90109053,171.73,171.53,3.7186]
[1729761819562,2.9153,171.66,171.6,2.9161]
[1729761819959,2.9153,171.66,171.6,4.08177]
[1729761820961,2.9153,171.66,171.6,1.16567]
[1729761821161,2.9153,171.66,171.61,2.9159]
[1729761821859,2.9153,171.66,171.61,4.08157]
[1729761822461,8.135,171.67,171.63,2.9157]
[1729761822661,2.915,171.67,171.63,2.9157]
[1729761822965,2.915,171.67,171.63,4.08137]
[1729761824062,2.9157,171.63,171.56,4.08247]
[1729761824256,5.22,171.63,171.56,2.9168]